bitfinex/quotes_BTCUSD_20241128
["timestamp","ask_amount","ask_price","bid_price","bid_amount"]
[1732835244539,0.12684521,95743.0,95742.0,0.0097228]
[1732835244877,0.12684521,95743.0,95742.0,0.01834074]
[1732835245329,0.024,95743.0,95742.0,0.12278774]
[1732835245528,0.024,95743.0,95742.0,0.12932173]
[1732835245529,0.001,95743.0,95742.0,0.12932173]
[1732835245913,0.001,95743.0,95742.0,0.13977541]
[1732835246122,0.001,95743.0,95742.0,0.14162395]
[1732835246323,0.001,95743.0,95742.0,0.13962395]
[1732835246580,0.00815448,95775.0,95761.0,0.104426]
[1732835246581,0.000985,95762.0,95761.0,0.104426]
[1732835246760,0.000985,95762.0,95760.0,0.006]
[1732835246761,0.10284521,95762.0,95760.0,0.006]
[1732835246907,0.10284521,95761.0,95760.0,0.006]
[1732835247309,0.20727121,95761.0,95760.0,0.01253287]
[1732835247540,0.10284521,95761.0,95760.0,0.01253287]
[1732835247834,0.12584521,95761.0,95760.0,0.01253287]
[1732835248459,0.23027121,95761.0,95760.0,0.02298559]
[1732835248705,0.12584521,95761.0,95760.0,0.02298559]
[1732835249061,0.23027121,95761.0,95760.0,0.02298559]
[1732835249261,0.12584521,95761.0,95760.0,0.02298559]
[1732835249480,0.12584447,95770.0,95760.0,0.02298559]
[1732835249481,0.023,95769.0,95760.0,0.02298559]
[1732835249721,0.12584521,95768.0,95767.0,0.11042]
[1732835249928,0.12584521,95768.0,95767.0,0.12740559]
[1732835251036,0.12684521,95768.0,95767.0,0.12940559]
[1732835251187,0.001,95768.0,95767.0,0.12940559]
[1732835251559,0.001,95768.0,95767.0,0.17695356]
[1732835251756,0.001,95768.0,95767.0,0.18551131]
[1732835252807,0.001,95768.0,95767.0,0.18651061]
[1732835253015,0.001,95768.0,95767.0,0.19151061]
[1732835253500,0.09952026,95786.0,95780.0,0.104405]
[1732835253704,0.09952026,95786.0,95781.0,0.01698559]
[1732835253705,0.12584521,95785.0,95781.0,0.01698559]
[1732835253956,0.127402,95783.0,95782.0,0.01698559]
[1732835254164,0.127403,95782.0,95781.0,0.01139826]
[1732835254387,0.023,95779.0,95777.0,0.006]
[1732835254596,0.12584521,95778.0,95777.0,0.006]
[1732835254810,0.12584521,95778.0,95777.0,0.02298206]
[1732835255011,0.23025321,95778.0,95777.0,0.02298206]
[1732835255421,0.12584521,95778.0,95777.0,0.01253156]
[1732835256300,0.12584521,95778.0,95777.0,0.02298206]
[1732835256494,0.12684521,95778.0,95777.0,0.01553156]
[1732835256717,0.23125321,95778.0,95777.0,0.01553156]
[1732835257170,0.23125321,95778.0,95777.0,0.02598206]
[1732835257408,0.12684521,95778.0,95777.0,0.012]
[1732835257616,0.12684521,95778.0,95777.0,0.01853159]
[1732835258488,0.23125321,95778.0,95777.0,0.01853159]
[1732835258720,0.12684521,95778.0,95777.0,0.01853159]
[1732835259368,0.12684521,95778.0,95777.0,0.12294059]
[1732835259615,0.12684521,95778.0,95777.0,0.01853159]
[1732835259840,0.23125321,95778.0,95777.0,0.01853159]
[1732835260322,0.30755321,95778.0,95777.0,0.006]
[1732835260551,0.50345321,95778.0,95777.0,0.006]
[1732835261858,0.50245321,95778.0,95777.0,0.003]
[1732835262088,0.173,95777.0,95760.0,0.006]
[1732835262295,0.127426,95761.0,95760.0,0.006]
[1732835262502,0.23027121,95761.0,95760.0,0.006]
[1732835263604,0.23027921,95754.0,95753.0,0.000984]
[1732835263841,0.23027921,95754.0,95742.0,0.0017228]
[1732835263842,0.127446,95743.0,95742.0,0.0017228]
[1732835264056,0.23029121,95743.0,95742.0,0.0017228]
[1732835264281,0.30659121,95743.0,95742.0,0.0017228]
[1732835266926,0.30759121,95743.0,95742.0,0.0017228]
[1732835267138,0.30759121,95743.0,95742.0,0.0057228]
[1732835268450,0.49749121,95743.0,95742.0,0.0057228]
[1732835268681,1.03879121,95743.0,95742.0,0.0057228]
[1732835268903,0.254459,95731.0,95730.0,0.0017236]
[1732835269167,0.48190421,95731.0,95730.0,0.0017236]
[1732835270283,0.48290421,95731.0,95730.0,0.0017236]
[1732835270501,0.48590421,95731.0,95730.0,0.0017236]
[1732835270720,0.48190421,95731.0,95730.0,0.0017236]
[1732835270932,0.50690421,95731.0,95730.0,0.0017236]
[1732835271148,0.51533843,95731.0,95730.0,0.0017236]
[1732835271632,0.50690421,95731.0,95730.0,0.0017236]
[1732835271835,0.35930421,95731.0,95730.0,0.0017236]
[1732835272050,0.36530421,95731.0,95730.0,0.0017236]
[1732835272505,0.36271617,95731.0,95730.0,0.0017236]
[1732835272950,0.37071617,95731.0,95730.0,0.0017236]
[1732835273157,0.38771617,95731.0,95730.0,0.0017236]
[1732835273367,0.38571617,95731.0,95730.0,0.0017236]
[1732835273601,0.51081617,95731.0,95730.0,0.0017236]
[1732835275889,0.38871617,95731.0,95730.0,0.0017236]
[1732835276663,0.38971617,95731.0,95730.0,0.0017236]
[1732835277104,0.38571617,95731.0,95730.0,0.0017236]
[1732835278440,0.38671617,95731.0,95730.0,0.0017236]
[1732835278885,0.38571617,95731.0,95730.0,0.0017236]
[1732835279796,0.38971617,95731.0,95730.0,0.0017236]
[1732835280024,0.38671617,95731.0,95730.0,0.0017236]
[1732835280252,0.38571617,95731.0,95730.0,0.0017236]
[1732835280701,0.38771617,95731.0,95730.0,0.0017236]
[1732835280940,0.39171617,95731.0,95730.0,0.0017236]
[1732835282077,0.38971617,95731.0,95730.0,0.0017236]
[1732835282328,0.38671617,95731.0,95730.0,0.0017236]
[1732835282557,0.38971617,95731.0,95730.0,0.0017236]
[1732835282771,0.38571617,95731.0,95730.0,0.0017236]
[1732835283011,0.38771617,95731.0,95730.0,0.0017236]
[1732835283247,0.39171617,95731.0,95730.0,0.00233617]
[1732835283500,0.38571617,95731.0,95730.0,0.00233617]
[1732835283951,0.38171617,95731.0,95730.0,0.00233617]
[1732835284414,0.38471617,95731.0,95730.0,0.00233617]
[1732835284639,0.005,95731.0,95730.0,0.11279617]
[1732835284867,0.003,95731.0,95730.0,0.1206439]
[1732835285095,0.003,95731.0,95730.0,0.2446439]
[1732835285336,0.004,95731.0,95730.0,0.2446439]
[1732835285585,0.001,95731.0,95730.0,0.2446439]
[1732835285813,0.002,95731.0,95730.0,0.2446439]
[1732835286294,0.001,95731.0,95730.0,0.4838232]
[1732835286504,0.002,95731.0,95730.0,0.2526439]
[1732835286729,0.001,95731.0,95730.0,0.2556439]
[1732835286955,0.001,95731.0,95730.0,0.2616439]
[1732835287880,0.002,95731.0,95730.0,0.2626439]
[1732835288124,0.002,95731.0,95730.0,0.2526439]
[1732835288350,0.001,95731.0,95730.0,0.2556439]
[1732835288567,0.002,95731.0,95730.0,0.2636439]
[1732835289240,0.208846,95765.0,95754.0,0.006]
[1732835289453,0.128431,95755.0,95754.0,0.006]
[1732835289677,0.12584521,95755.0,95754.0,0.006]
[1732835290327,0.23027821,95755.0,95754.0,0.006]
[1732835290575,0.12684521,95755.0,95754.0,0.006]
[1732835290787,0.23127821,95755.0,95754.0,0.006]
[1732835291008,0.12684521,95755.0,95754.0,0.006]
[1732835291247,0.024,95755.0,95754.0,0.006]
[1732835291514,0.001,95755.0,95754.0,0.186534]
[1732835291766,0.001,95755.0,95754.0,0.18838223]
[1732835292504,0.0009974,95777.0,95772.0,0.104413]
[1732835292742,0.0009974,95777.0,95776.0,0.006]
[1732835292743,0.1054064,95777.0,95776.0,0.006]
[1732835292989,0.20725421,95777.0,95776.0,0.006]
[1732835293462,0.23025421,95777.0,95776.0,0.006]
[1732835294463,0.23025421,95777.0,95776.0,0.008]
[1732835296141,0.12584521,95777.0,95776.0,0.008]
[1732835296380,0.12584521,95777.0,95776.0,0.006]
[1732835296643,0.0008626,95780.0,95776.0,0.006]
[1732835296644,0.0008626,95780.0,95779.0,0.006]
[1732835296885,0.12670781,95780.0,95779.0,0.006]
[1732835297115,0.12670781,95780.0,95779.0,0.01267554]
[1732835298562,0.12070781,95780.0,95779.0,0.01267554]
[1732835299278,0.22511281,95780.0,95779.0,0.01267554]
[1732835299544,0.22511281,95780.0,95779.0,0.006]
[1732835299785,0.22511281,95780.0,95779.0,0.01]
[1732835300501,0.22511281,95780.0,95779.0,0.004]
[1732835301693,0.22511281,95780.0,95779.0,0.003]
[1732835302642,0.104409,95777.0,95776.0,0.00061257]
[1732835302885,0.23025421,95777.0,95776.0,0.00061257]
[1732835303427,0.12584521,95777.0,95776.0,0.00661257]
[1732835303675,0.0008625,95789.0,95785.0,0.006]
[1732835303914,0.10370771,95786.0,95785.0,0.006]
[1732835304163,0.20810671,95786.0,95785.0,0.006]
[1732835304888,0.1274,95785.0,95784.0,0.0069897]
[1732835305124,0.1274,95785.0,95782.0,0.006]
[1732835305125,0.104402,95783.0,95782.0,0.006]
[1732835305355,0.23024721,95783.0,95782.0,0.006]
[1732835305588,0.23024721,95783.0,95777.0,0.006]
[1732835305589,0.127408,95778.0,95777.0,0.006]
[1732835305830,0.127409,95777.0,95776.0,0.01161257]
[1732835306083,0.23025421,95777.0,95776.0,0.01161257]
[1732835306769,0.23025421,95777.0,95776.0,0.00661257]
[1732835307028,0.23025421,95777.0,95776.0,0.00261257]
[1732835307325,0.23025421,95777.0,95776.0,0.00861257]
[1732835307564,0.23025421,95777.0,95776.0,0.00661257]
[1732835307778,0.23025421,95777.0,95776.0,0.00861257]
[1732835308000,0.31095421,95777.0,95776.0,0.00361257]
[1732835308225,0.31095421,95777.0,95776.0,0.00961257]
[1732835308446,0.31095421,95777.0,95776.0,0.00861257]
[1732835308692,0.31095421,95777.0,95776.0,0.00261257]
[1732835308910,0.31095421,95777.0,95776.0,0.00361257]
[1732835308911,0.46095421,95777.0,95776.0,0.00361257]
[1732835310064,0.46095421,95777.0,95776.0,0.00161257]
[1732835310297,0.46695421,95777.0,95776.0,0.00161257]
[1732835310756,0.46695421,95777.0,95776.0,0.00061257]
[1732835311004,0.46995421,95777.0,95776.0,0.00061257]
[1732835313557,0.46395421,95777.0,95776.0,0.00061257]
[1732835314263,0.47214728,95777.0,95776.0,0.00061257]
[1732835314520,0.23325421,95777.0,95776.0,0.00061257]
[1732835314790,0.009,95777.0,95776.0,0.11102257]
[1732835315033,0.009,95777.0,95776.0,0.00661257]
[1732835315270,0.009,95777.0,95776.0,0.11102257]
[1732835315499,0.009,95777.0,95776.0,0.11768691]
[1732835315707,0.104401,95784.0,95776.0,0.01327691]
[1732835315925,0.10284521,95783.0,95777.0,0.1054004]
[1732835316151,0.023,95782.0,95777.0,0.1054004]
[1732835316379,0.023,95781.0,95777.0,0.1054004]
[1732835316801,0.023,95781.0,95778.0,0.00666434]
[1732835317012,0.023,95781.0,95778.0,0.11107134]
[1732835317225,0.023,95781.0,95778.0,0.00666434]
[1732835317914,0.0008623,95780.0,95778.0,0.00666434]
[1732835318132,0.0008623,95780.0,95778.0,0.00766434]
[1732835318347,0.0008623,95780.0,95778.0,0.001]
[1732835318572,0.0008623,95780.0,95779.0,0.00666434]
[1732835320214,0.0238623,95780.0,95779.0,0.003]
[1732835320455,0.0008623,95780.0,95779.0,0.003]
[1732835320674,0.0008623,95780.0,95779.0,0.00966434]
[1732835321141,0.0008623,95780.0,95779.0,0.01066434]
[1732835323675,0.20250751,95780.0,95779.0,0.01666434]
[1732835323897,0.35341251,95780.0,95779.0,0.004]
[1732835324552,0.35341251,95780.0,95779.0,0.003]
[1732835324767,0.50341251,95780.0,95779.0,0.003]
[1732835325657,0.277409,95777.0,95776.0,0.00233717]
[1732835325888,0.38025421,95777.0,95776.0,0.00233717]
[1732835327266,0.12584521,95777.0,95776.0,0.00833717]
[1732835327497,0.0008623,95780.0,95779.0,0.006]
[1732835328209,0.0008623,95780.0,95779.0,0.01916825]
[1732835328210,0.1282673,95780.0,95779.0,0.01916825]
[1732835328429,0.1222673,95780.0,95779.0,0.01253194]
[1732835330063,0.1222673,95780.0,95779.0,0.01353194]
[1732835330292,0.1231296,95780.0,95779.0,0.01353194]
[1732835330749,0.1231296,95780.0,95779.0,0.01253194]
[1732835330965,0.22597481,95780.0,95779.0,0.01253194]
[1732835331177,0.22597481,95780.0,95779.0,0.01553194]
[1732835332766,0.22597481,95780.0,95779.0,0.01253194]
[1732835333042,0.22597481,95780.0,95779.0,0.01353194]
[1732835333262,0.22597481,95780.0,95779.0,0.01453194]
[1732835334406,0.22597481,95780.0,95779.0,0.01253194]
[1732835335814,0.22597481,95780.0,95779.0,0.01453194]
[1732835336052,0.22597481,95780.0,95779.0,0.01253194]
[1732835336482,0.22597481,95780.0,95779.0,0.01453194]
[1732835336690,0.22597481,95780.0,95779.0,0.006]
[1732835337131,0.104409,95777.0,95776.0,0.00833717]
[1732835337352,0.23025421,95777.0,95776.0,0.00833717]
[1732835338877,0.12584521,95777.0,95776.0,0.00833717]
[1732835339111,0.23025421,95777.0,95776.0,0.00833717]
[1732835339368,0.23025421,95777.0,95776.0,0.01033717]
[1732835339768,0.23025421,95777.0,95776.0,0.00833717]
[1732835340013,0.12584521,95777.0,95776.0,0.01033717]
[1732835340261,0.23025421,95777.0,95776.0,0.01033717]
[1732835340497,0.23025421,95777.0,95776.0,0.00833717]
[1732835340711,0.23025421,95777.0,95776.0,0.01897657]
[1732835341160,0.23025421,95777.0,95776.0,0.01797657]
[1732835341392,0.23025421,95777.0,95776.0,0.01233717]
[1732835341880,0.23025421,95777.0,95776.0,0.01133717]
[1732835342119,0.23111651,95777.0,95776.0,0.00833717]
[1732835342577,0.23111651,95777.0,95776.0,0.01133717]
[1732835342818,0.38111651,95777.0,95776.0,0.00333717]
[1732835343068,0.38111651,95777.0,95776.0,0.00533717]
[1732835343511,0.50921651,95777.0,95776.0,0.00533717]
[1732835343753,0.50321651,95777.0,95776.0,0.00533717]
[1732835343994,0.50321651,95777.0,95776.0,0.00333717]
[1732835344234,0.50321651,95777.0,95776.0,0.00233717]
[1732835345444,0.50621651,95777.0,95776.0,0.00233717]
[1732835345663,0.50321651,95777.0,95776.0,0.00233717]
[1732835345892,0.51021651,95777.0,95776.0,0.00333717]
[1732835348100,0.51566508,95777.0,95776.0,0.00333717]
[1732835357465,0.11070751,95777.0,95776.0,0.00933717]
[1732835357697,0.0078623,95777.0,95776.0,0.00933717]
[1732835358138,0.0078623,95777.0,95776.0,0.00833717]
[1732835358360,0.0008623,95777.0,95776.0,0.01389752]
[1732835358578,0.111409,95777.0,95776.0,0.01489752]
[1732835358884,0.0008623,95780.0,95779.0,0.006]
[1732835359100,0.1282673,95780.0,95779.0,0.006]
[1732835359786,0.104409,95777.0,95776.0,0.00533717]
[1732835359996,0.104409,95777.0,95776.0,0.00233717]
[1732835359997,0.23025421,95777.0,95776.0,0.00233717]
[1732835360449,0.23025421,95777.0,95776.0,0.00333717]
[1732835360919,0.23025421,95777.0,95776.0,0.00233717]
[1732835362097,0.23125421,95777.0,95776.0,0.00233717]
[1732835365235,0.23025421,95777.0,95776.0,0.00233717]
[1732835365466,0.23111651,95777.0,95776.0,0.00933717]
[1732835365672,0.23111651,95777.0,95776.0,0.00833717]
[1732835365879,0.12670751,95777.0,95776.0,0.00833717]
[1732835366103,0.23111651,95777.0,95776.0,0.00333717]
[1732835366324,0.23111651,95777.0,95776.0,0.00233717]
[1732835366539,0.0008623,95777.0,95776.0,0.00633717]
[1732835366773,0.0008623,95777.0,95776.0,0.00733717]
[1732835367230,0.0008623,95777.0,95776.0,0.11174717]
[1732835367439,0.0008623,95777.0,95776.0,0.11730752]
[1732835369179,0.0008623,95777.0,95776.0,0.12330752]
[1732835370264,0.0008623,95777.0,95776.0,0.35649179]
[1732835370512,0.0008623,95777.0,95776.0,0.12330752]
[1732835370729,0.0008623,95777.0,95776.0,0.12515537]
[1732835372331,0.0008623,95777.0,95776.0,0.24835537]
[1732835372551,0.0008623,95777.0,95776.0,0.40650752]
[1732835372986,0.0008623,95777.0,95776.0,0.40550752]
[1732835373426,0.0008625,95789.0,95788.0,0.104397]
[1732835373648,0.0008625,95789.0,95788.0,0.34009392]
[1732835373876,0.0008625,95789.0,95788.0,0.34374134]
[1732835374541,0.0008625,95789.0,95788.0,0.11089103]
[1732835374993,0.0008625,95789.0,95788.0,0.11273854]
[1732835375450,0.0008625,95789.0,95788.0,0.11773854]
[1732835375694,0.0008625,95789.0,95788.0,0.12373854]
[1732835376154,0.0008625,95789.0,95788.0,0.12573854]
[1732835377518,0.0008625,95789.0,95788.0,0.17353854]
[1732835378889,0.0008625,95789.0,95788.0,0.17169103]
[1732835379887,0.0008625,95789.0,95788.0,0.12389103]
[1732835381017,0.0008625,95789.0,95788.0,0.12573855]
[1732835382798,0.0008625,95789.0,95788.0,0.12389103]
[1732835383010,0.0008625,95789.0,95788.0,0.12573855]
[1732835388325,0.0992415,95805.0,95788.0,0.02134155]
[1732835388554,0.0992415,95805.0,95791.0,0.208786]
[1732835388555,0.023,95804.0,95791.0,0.208786]
[1732835388772,0.023,95804.0,95796.0,0.104387]
[1732835388986,0.023,95804.0,95798.0,0.0009953]
[1732835389213,0.023,95799.0,95798.0,0.0009953]
[1732835389676,0.023,95799.0,95798.0,0.00644711]
[1732835389917,0.023,95799.0,95798.0,0.0009953]
[1732835391022,0.023,95803.0,95798.0,0.00644711]
[1732835391331,0.00099,95810.0,95809.0,0.110374]
[1732835391783,0.0476622,95828.0,95809.0,0.01326027]
[1732835391990,0.10284521,95826.0,95819.0,0.104363]
[1732835392202,0.10284521,95826.0,95810.0,0.208746]
[1732835392450,0.20720021,95826.0,95818.0,0.104364]
[1732835392846,0.10284521,95826.0,95810.0,0.208746]
[1732835393114,0.023,95825.0,95819.0,0.00541316]
[1732835393342,0.023,95825.0,95815.0,0.208735]
[1732835393343,0.023,95825.0,95815.0,0.208733]
[1732835393577,0.127357,95825.0,95820.0,0.00541316]
[1732835393809,0.127357,95825.0,95815.0,0.208733]
[1732835394062,0.023,95825.0,95821.0,0.00541316]
[1732835394282,0.023,95825.0,95818.0,0.0009914]
[1732835394283,0.127356,95825.0,95818.0,0.1053554]
[1732835394520,0.127356,95825.0,95822.0,0.00541316]
[1732835394725,0.127356,95825.0,95818.0,0.0009914]
[1732835394959,0.023,95825.0,95819.0,0.00541316]
[1732835395155,0.023,95825.0,95818.0,0.0009914]
[1732835395418,0.024,95825.0,95819.0,0.00541316]
[1732835395674,0.023,95825.0,95819.0,0.00541316]
[1732835396119,0.024,95825.0,95819.0,0.00541316]
[1732835396334,0.023,95825.0,95819.0,0.00541316]
[1732835396785,0.023,95823.0,95822.0,0.006]
[1732835397207,0.127359,95823.0,95822.0,0.006]
[1732835399645,0.23020421,95823.0,95822.0,0.006]
[1732835400336,0.104361,95821.0,95820.0,0.006]
[1732835400578,0.023,95821.0,95818.0,0.0009914]
[1732835400818,0.440442,95822.0,95818.0,0.0009914]
[1732835400819,0.253263,95819.0,95818.0,0.0009914]
[1732835401052,0.253263,95819.0,95810.0,0.006]
[1732835401053,0.127372,95811.0,95810.0,0.006]
[1732835401287,0.23021721,95811.0,95810.0,0.006]
[1732835401498,0.104369,95814.0,95810.0,0.006]
[1732835401723,0.10437,95813.0,95810.0,0.006]
[1732835401958,0.127371,95812.0,95810.0,0.006]
[1732835402424,0.023,95813.0,95811.0,0.00535482]
[1732835402628,0.104372,95811.0,95810.0,0.006]
[1732835402838,0.127372,95811.0,95810.0,0.008]
[1732835403520,0.104373,95810.0,95809.0,0.006]
[1732835403738,0.127373,95810.0,95809.0,0.006]
[1732835403953,0.023,95810.0,95809.0,0.006]
[1732835404211,0.12584447,95820.0,95819.0,0.006]
[1732835404417,0.1052212,95823.0,95822.0,0.006]
[1732835404633,0.10370741,95823.0,95822.0,0.006]
[1732835404843,0.0008622,95823.0,95822.0,0.006]
[1732835405532,0.0008622,95823.0,95822.0,0.01135482]
[1732835405948,0.0248622,95823.0,95822.0,0.006]
[1732835406636,0.0248622,95823.0,95822.0,0.01135023]
[1732835407100,0.0008622,95823.0,95822.0,0.01135023]
[1732835407779,0.1282212,95823.0,95822.0,0.01135023]
[1732835407994,0.1282212,95823.0,95822.0,0.006]
[1732835409358,0.1282212,95823.0,95819.0,0.0009971]
[1732835409359,0.127362,95820.0,95819.0,0.0009971]
[1732835409604,0.23020721,95820.0,95819.0,0.0009971]
[1732835411186,0.23020721,95820.0,95819.0,0.0019971]
[1732835415649,0.23020721,95820.0,95819.0,0.0079971]
[1732835418153,0.12584521,95820.0,95819.0,0.0079971]
[1732835418396,0.22420721,95820.0,95819.0,0.0079971]
[1732835424787,0.22420721,95820.0,95819.0,0.0019971]
[1732835425029,0.35000721,95820.0,95819.0,0.0019971]
[1732835426314,0.35000721,95820.0,95819.0,0.0009971]
[1732835426577,0.35000721,95820.0,95819.0,0.0019971]
[1732835428828,0.35000721,95820.0,95819.0,0.001]
[1732835430802,0.57776326,95820.0,95819.0,0.001]
[1732835431039,0.57776326,95820.0,95811.0,0.001724]
[1732835431040,0.411071,95812.0,95811.0,0.001724]
[1732835431255,0.411071,95812.0,95808.0,4e-07]
[1732835431256,0.405074,95809.0,95808.0,4e-07]
[1732835431477,0.108377,95806.0,95805.0,0.0017242]
[1732835431704,0.50802221,95806.0,95805.0,0.0017242]
[1732835432439,0.51622646,95806.0,95805.0,0.0017242]
[1732835432680,0.60454712,95806.0,95805.0,0.0017242]
[1732835432920,0.60999658,95806.0,95805.0,0.0017242]
[1732835433646,0.61899658,95806.0,95805.0,0.0027242]
[1732835436531,1.16029658,95806.0,95805.0,0.0027242]
[1732835437278,1.14529658,95806.0,95805.0,0.0027242]
[1732835438497,1.14529658,95806.0,95805.0,2e-07]
[1732835440643,1.05697592,95806.0,95805.0,2e-07]
[1732835441137,1.05697592,95806.0,95783.0,0.0009985]
[1732835441138,0.277398,95787.0,95783.0,0.0009985]
[1732835441384,0.50364321,95787.0,95776.0,0.0017246]
[1732835443582,0.51664321,95787.0,95786.0,0.0027244]
[1732835444290,0.61947467,95787.0,95786.0,0.0027244]
[1732835444550,0.63999334,95787.0,95786.0,0.0027244]
[1732835444841,1.18129334,95787.0,95786.0,0.0027244]
[1732835447265,1.08666968,95787.0,95786.0,0.0027244]
[1732835448561,1.08066968,95787.0,95786.0,0.00333697]
[1732835453321,1.08066968,95787.0,95768.0,0.0009803]
[1732835453322,0.254417,95769.0,95768.0,8.7e-07]
[1732835453545,0.254417,95769.0,95736.0,0.076]
[1732835453546,0.127452,95737.0,95736.0,0.086]
[1732835453776,0.23029721,95737.0,95736.0,0.086]
[1732835454023,0.104458,95732.0,95731.0,0.011726]
[1732835454265,0.127458,95732.0,95731.0,0.011726]
[1732835455029,0.023,95732.0,95731.0,0.011726]
[1732835455265,0.127458,95732.0,95731.0,0.011726]
[1732835456711,0.127458,95732.0,95731.0,0.015726]
[1732835456956,0.128458,95732.0,95731.0,0.015726]
[1732835457202,0.128458,95732.0,95731.0,0.011726]
[1732835457437,0.128458,95732.0,95731.0,0.014726]
[1732835457675,0.11932656,95732.0,95731.0,0.014726]
[1732835458155,0.128458,95732.0,95731.0,0.014726]
[1732835458395,0.127458,95732.0,95731.0,0.014726]
[1732835458627,0.023,95732.0,95731.0,0.014726]
[1732835458878,0.128458,95732.0,95731.0,0.014726]
[1732835459819,0.128458,95732.0,95731.0,0.02697803]
[1732835460804,0.128458,95732.0,95731.0,0.01697803]
[1732835460805,0.23130321,95732.0,95731.0,0.01697803]
[1732835461302,0.23130321,95732.0,95731.0,0.004726]
[1732835461808,0.23130321,95732.0,95731.0,0.001726]
[1732835462049,0.23030321,95732.0,95731.0,0.001726]
[1732835462290,0.23030321,95732.0,95731.0,0.002726]
[1732835462761,0.23030321,95732.0,95731.0,0.001726]
[1732835463009,0.23430321,95732.0,95731.0,0.001726]
[1732835463278,0.23430321,95732.0,95731.0,0.00190969]
[1732835463531,0.50530321,95732.0,95731.0,0.00190969]
[1732835464028,0.50730321,95732.0,95731.0,0.00190969]
[1732835464761,0.50430321,95732.0,95731.0,0.00190969]
[1732835465252,0.37730321,95732.0,95731.0,0.00190969]
[1732835465491,0.37830321,95732.0,95731.0,0.00190969]
[1732835466455,0.37530321,95732.0,95731.0,0.00190969]
[1732835466684,0.37830321,95732.0,95731.0,0.00190969]
[1732835466929,0.37730321,95732.0,95731.0,0.00190969]
[1732835467171,0.37830321,95732.0,95731.0,0.00190969]
[1732835468314,0.37530321,95732.0,95731.0,0.00190969]
[1732835469024,0.37630321,95732.0,95731.0,0.00190969]
[1732835469235,0.37530321,95732.0,95731.0,0.00190969]
[1732835469462,0.37430321,95732.0,95731.0,0.00190969]
[1732835469684,0.37630321,95732.0,95731.0,0.00190969]
[1732835469904,0.37630321,95732.0,95731.0,0.00290969]
[1732835470148,0.37430321,95732.0,95731.0,0.00290969]
[1732835470411,0.37430321,95732.0,95731.0,0.00190969]
[1732835470643,0.37430321,95732.0,95731.0,0.00290969]
[1732835472757,0.37430321,95732.0,95731.0,0.00190969]
[1732835477421,0.37516551,95732.0,95731.0,0.00290969]
[1732835477630,0.22516551,95732.0,95731.0,0.00290969]
[1732835477855,0.22516551,95732.0,95731.0,0.01290969]
[1732835477856,0.20816551,95732.0,95731.0,0.01290969]
[1732835478360,0.20216551,95732.0,95731.0,0.02527835]
[1732835478560,0.20216551,95732.0,95731.0,0.25706998]
[1732835478990,0.09770751,95732.0,95731.0,0.25706998]
[1732835479218,0.12070751,95732.0,95731.0,0.25805148]
[1732835479426,0.12070751,95732.0,95731.0,0.25764681]
[1732835479649,0.12070751,95732.0,95731.0,0.25864681]
[1732835479866,0.12170751,95732.0,95731.0,0.25864681]
[1732835480115,0.12070751,95732.0,95731.0,0.25764681]
[1732835480589,0.12170751,95732.0,95731.0,0.26164681]
[1732835481233,0.12170751,95732.0,95731.0,0.02925985]
[1732835481454,0.12170751,95732.0,95731.0,0.26942289]
[1732835481943,0.0018623,95732.0,95731.0,0.37388189]
[1732835482170,0.0018623,95732.0,95731.0,0.26389493]
[1732835482829,0.0018623,95732.0,95731.0,0.41389493]
[1732835483039,0.0018623,95732.0,95731.0,0.40989493]
[1732835483683,0.0018623,95732.0,95731.0,0.41389493]
[1732835483915,0.0008623,95732.0,95731.0,0.41389493]
[1732835484136,0.0008623,95732.0,95731.0,0.40989493]
[1732835484558,0.0068623,95732.0,95731.0,0.41089493]
[1732835484781,0.0068623,95732.0,95731.0,0.41088222]
[1732835485216,0.0068623,95732.0,95731.0,0.82286322]
[1732835485429,0.0078623,95732.0,95731.0,0.41788222]
[1732835485644,0.0068623,95732.0,95731.0,0.41088222]
[1732835485856,0.0008623,95732.0,95731.0,0.40988222]
[1732835486070,0.0098623,95732.0,95731.0,0.41088222]
[1732835486288,0.0098623,95732.0,95731.0,0.41188222]
[1732835486499,0.0008623,95732.0,95731.0,0.26088222]
[1732835486704,0.0008623,95732.0,95731.0,0.25988222]
[1732835486978,0.0018623,95732.0,95731.0,0.54797395]
[1732835487181,0.0018623,95732.0,95731.0,0.27788222]
[1732835487622,0.0018623,95732.0,95731.0,0.26888222]
[1732835487829,0.0018623,95732.0,95731.0,0.27488222]
[1732835488050,0.0018623,95732.0,95731.0,0.27487847]
[1732835488699,0.0018623,95732.0,95731.0,0.17041947]
[1732835488921,0.0008623,95732.0,95731.0,0.16141947]
[1732835489148,0.0018623,95732.0,95731.0,0.27487847]
[1732835491386,0.0018623,95732.0,95731.0,0.2748769]
[1732835491598,0.0018623,95732.0,95731.0,0.2297769]
[1732835492461,0.0018623,95732.0,95731.0,0.1253179]
[1732835492701,0.0018623,95732.0,95731.0,0.2297769]
[1732835493341,0.023,95739.0,95733.0,0.104457]
[1732835493560,0.023,95739.0,95734.0,0.00775805]
[1732835493776,0.023,95739.0,95734.0,0.01228515]
[1732835494222,0.10445,95739.0,95734.0,0.01228515]
[1732835494439,0.12584769,95750.0,95734.0,0.01228515]
[1732835494676,0.104448,95742.0,95735.0,0.01228515]
[1732835494902,0.1,95790.0,95748.0,0.01]
[1732835495142,0.1,95790.0,95750.0,0.01]
[1732835495143,0.104436,95753.0,95750.0,0.01]
[1732835495411,0.104437,95751.0,95750.0,0.01]
[1732835495625,0.127437,95751.0,95750.0,0.02228515]
[1732835495855,0.127437,95751.0,95750.0,0.01]
[1732835496550,0.23028221,95751.0,95750.0,0.01]
[1732835496993,0.23028221,95751.0,95750.0,0.014]
[1732835497264,0.12584521,95751.0,95750.0,0.016]
[1732835497475,0.23028221,95751.0,95750.0,0.016]
[1732835498778,0.12584521,95751.0,95750.0,0.016]
[1732835498987,0.23028221,95751.0,95750.0,0.016]
[1732835499202,0.12584521,95751.0,95750.0,0.016]
[1732835499411,0.23028221,95751.0,95750.0,0.016]
[1732835499628,0.12584521,95751.0,95750.0,0.02619853]
[1732835499893,0.23028221,95751.0,95750.0,0.02619853]
[1732835500124,0.23028221,95751.0,95750.0,0.016]
[1732835500353,0.12584521,95751.0,95750.0,0.016]
[1732835500555,0.12584521,95751.0,95750.0,0.02619895]
[1732835500768,0.12584521,95751.0,95750.0,0.016]
[1732835500973,0.12584521,95751.0,95750.0,0.02619895]